fUSD/lending_fUSD_20240903
["ID","MTS","AMOUNT","RATE_DAILY","PERIOD"]
[337049718,1725379834848,-3807.04,0.00014331,2]
[337049719,1725379834857,-500.0,0.00014331,2]
[337049720,1725379834867,-500.0,0.00014331,2]
[337049721,1725379834876,-5863.55,0.00014331,2]
[337049722,1725379834886,-871.05,0.00014331,2]
[337049723,1725379834895,-871.05,0.00014331,2]
[337049724,1725379834904,-500.0,0.00014331,2]
[337049725,1725379834913,-871.05,0.00014331,2]
[337049726,1725379834923,-871.05,0.00014331,2]
[337049727,1725379834932,-68.87722065,0.00014332,2]
[337049732,1725379838433,-184.701514,0.00013973,2]
[337049733,1725379838442,-1964.01,0.00014331,2]
[337049734,1725379838452,-2160.33,0.00014331,2]
[337049735,1725379838461,-500.0,0.00014331,2]
[337049736,1725379838470,-53636.95848599,0.00014332,2]
[337049737,1725379838487,-337.34067302,0.00014332,2]
[337049738,1725379838498,-393.01182328,0.00014332,2]
[337049739,1725379838523,-777.16020434,0.00014332,2]
[337049740,1725379838536,-1080.68345125,0.00014332,2]
[337049741,1725379838685,-5761.84,0.00014331,2]
[337049742,1725379838695,-115123.57333007,0.00014332,2]
[337049743,1725379838706,-3091.6,0.00014332,2]
[337049822,1725379840486,-1341.45000002,0.00014332,2]
[337049823,1725379840497,-262.894995,0.00014332,2]
[337049824,1725379840593,-13471.89695095,0.00014332,2]
[337049825,1725379840604,-642.84,0.00014332,2]
[337049826,1725379840615,-242611.70766241,0.00014332,2]
[337049827,1725379840624,-1627.29277935,0.00014332,2]
[337049828,1725379840634,-1696.17,0.00014332,2]
[337049829,1725379840643,-1696.17,0.00014332,2]
[337049830,1725379840653,-1696.17,0.00014332,2]
[337049831,1725379840662,-1696.17,0.00014332,2]
[337049832,1725379840672,-1696.17,0.00014332,2]
[337049833,1725379840681,-1696.17,0.00014332,2]
[337049834,1725379840690,-2468.46,0.00014332,2]
[337049835,1725379840700,-2468.46,0.00014332,2]
[337049836,1725379840709,-2468.46,0.00014332,2]
[337049837,1725379840719,-2468.46,0.00014332,2]
[337049838,1725379840728,-634.84,0.00014332,2]
[337049839,1725379840737,-634.84,0.00014332,2]
[337049840,1725379840746,-500.0,0.00014332,2]
[337049841,1725379840755,-500.0,0.00014332,2]
[337049842,1725379840765,-634.84,0.00014332,2]
[337049843,1725379840774,-500.0,0.00014332,2]
[337049844,1725379840786,-634.84,0.00014332,2]
[337049845,1725379840794,-500.0,0.00014332,2]
[337049846,1725379840804,-1406.74,0.00014332,2]
[337049847,1725379840813,-1406.74,0.00014332,2]
[337049848,1725379840822,-1406.74,0.00014332,2]
[337049849,1725379840832,-1406.74,0.00014332,2]
[337049850,1725379840841,-1406.74,0.00014332,2]
[337049851,1725379840850,-1406.74,0.00014332,2]
[337049852,1725379840859,-1406.74,0.00014332,2]
[337049853,1725379840867,-500.0,0.00014332,2]
[337049854,1725379840877,-500.0,0.00014332,2]
[337049855,1725379840885,-500.0,0.00014332,2]
[337049856,1725379840894,-500.0,0.00014332,2]
[337049857,1725379840903,-373.15050865,0.00014332,2]
[337049858,1725379840913,-500.0,0.00014332,2]
[337049860,1725379840922,-500.0,0.00014332,2]
[337049862,1725379840931,-500.0,0.00014332,2]
[337049863,1725379840941,-534.89263305,0.00014332,2]
[337049864,1725379840950,-500.0,0.00014332,2]
[337049865,1725379840959,-500.0,0.00014332,2]
[337049866,1725379840969,-500.0,0.00014332,2]
[337049867,1725379840978,-500.0,0.00014332,2]
[337049868,1725379840987,-2334.6,0.00014332,2]
[337049869,1725379840996,-2334.6,0.00014332,2]
[337049870,1725379841006,-2334.6,0.00014332,2]
[337049871,1725379841016,-2334.6,0.00014332,2]
[337049872,1725379841025,-1173.67,0.00014332,2]
[337049873,1725379841042,-1173.67,0.00014332,2]
[337049874,1725379841051,-1173.67,0.00014332,2]
[337049875,1725379841060,-1173.67,0.00014332,2]
[337049876,1725379841070,-500.0,0.00014332,2]
[337049877,1725379841079,-500.0,0.00014332,2]
[337049878,1725379841088,-317.82268633,0.00014332,2]
[337049879,1725379841097,-523.12,0.00014332,2]
[337049880,1725379841107,-523.12,0.00014332,2]
[337049881,1725379841117,-523.12,0.00014332,2]
[337049882,1725379841126,-523.12,0.00014332,2]
[337049883,1725379841135,-500.0,0.00014332,2]
[337049884,1725379841145,-500.0,0.00014332,2]
[337049885,1725379841154,-500.0,0.00014332,2]
[337049886,1725379841163,-500.0,0.00014332,2]
[337049887,1725379841173,-500.0,0.00014332,2]
[337049888,1725379841183,-500.0,0.00014332,2]
[337049889,1725379841192,-500.0,0.00014332,2]
[337049890,1725379841201,-2836.61,0.00014332,2]
[337049891,1725379841210,-2836.61,0.00014332,2]
[337049892,1725379841220,-2836.61,0.00014332,2]
[337049893,1725379841229,-2836.61,0.00014332,2]
[337049894,1725379841239,-500.0,0.00014332,2]
[337049895,1725379841248,-500.0,0.00014332,2]
[337049896,1725379841257,-500.0,0.00014332,2]
[337049897,1725379841267,-500.0,0.00014332,2]
[337049898,1725379841276,-500.0,0.00014332,2]
[337049899,1725379841289,-500.0,0.00014332,2]
[337049900,1725379841299,-500.0,0.00014332,2]
[337049901,1725379841310,-500.0,0.00014332,2]
[337049902,1725379841321,-500.0,0.00014332,2]
[337049903,1725379841330,-500.0,0.00014332,2]
[337049904,1725379841341,-500.0,0.00014332,2]
[337049905,1725379841351,-1148.56,0.00014332,2]
[337049906,1725379841361,-1148.56,0.00014332,2]
[337049907,1725379841370,-1148.56,0.00014332,2]
[337049908,1725379841380,-1148.56,0.00014332,2]
[337049909,1725379841390,-1280.46,0.00014332,2]
[337049910,1725379841400,-1280.46,0.00014332,2]
[337049911,1725379841409,-1280.46,0.00014332,2]
[337049912,1725379841418,-1280.46,0.00014332,2]
[337049913,1725379841427,-594.43,0.00014332,2]
[337049914,1725379841438,-594.43,0.00014332,2]
[337049915,1725379841447,-594.43,0.00014332,2]
[337049916,1725379841457,-594.43,0.00014332,2]
[337049917,1725379841466,-594.43,0.00014332,2]
[337049918,1725379841476,-594.43,0.00014332,2]
[337049919,1725379841486,-594.43,0.00014332,2]
[337049920,1725379841495,-1222.66,0.00014332,2]
[337049921,1725379841504,-1222.66,0.00014332,2]
[337049922,1725379841513,-1222.66,0.00014332,2]
[337049923,1725379841523,-1222.66,0.00014332,2]
[337049924,1725379841534,-500.0,0.00014332,2]
[337049925,1725379841544,-500.0,0.00014332,2]
[337049926,1725379841553,-500.0,0.00014332,2]
[337049927,1725379841563,-500.0,0.00014332,2]
[337049928,1725379841572,-500.0,0.00014332,2]
[337049929,1725379841582,-500.0,0.00014332,2]
[337049930,1725379841591,-500.0,0.00014332,2]
[337049931,1725379841600,-500.0,0.00014332,2]
[337049932,1725379841609,-500.0,0.00014332,2]
[337049933,1725379841619,-500.0,0.00014332,2]
[337049934,1725379841628,-500.0,0.00014332,2]
[337049935,1725379841637,-570.35967361,0.00014332,2]
[337049936,1725379841646,-500.0,0.00014332,2]
[337049937,1725379841656,-500.0,0.00014332,2]
[337049938,1725379841665,-500.0,0.00014332,2]
[337049939,1725379841674,-500.0,0.00014332,2]
[337049940,1725379841683,-2443.16,0.00014332,2]
[337049941,1725379841693,-2443.16,0.00014332,2]
[337049942,1725379841702,-2443.16,0.00014332,2]
[337049943,1725379841711,-2443.16,0.00014332,2]
[337049944,1725379841722,-832.5171453,0.00014332,2]
[337049945,1725379841748,-1610.6428547,0.00014332,2]
[337049946,1725379841757,-189.7433659,0.00014332,2]
[337049947,1725379841788,-2253.4166341,0.00014332,2]
[337049948,1725379841797,-2443.16,0.00014332,2]
[337049949,1725379841806,-157.17170112,0.00014332,2]
[337049950,1725379841817,-578.6204534,0.00014332,2]
[337049951,1725379841828,-365.76822172,0.00014332,2]
[337049955,1725379843480,-45.66962376,0.00014332,2]
[337049956,1725379843491,-238.48054758,0.00014332,2]
[337049959,1725379844775,-908.74945242,0.00014332,2]
[337049960,1725379844788,-1147.23,0.00014332,2]
[337049961,1725379844797,-1147.23,0.00014332,2]
[337049962,1725379844807,-1169.22,0.00014332,2]
[337049963,1725379844816,-1169.22,0.00014332,2]
[337049964,1725379844826,-1169.22,0.00014332,2]
[337049965,1725379844835,-1169.22,0.00014332,2]
[337049966,1725379844845,-500.0,0.00014332,2]
[337049967,1725379844855,-500.0,0.00014332,2]
[337049968,1725379844864,-500.0,0.00014332,2]
[337049969,1725379844874,-500.0,0.00014332,2]
[337049970,1725379844883,-500.0,0.00014332,2]
[337049971,1725379844893,-500.0,0.00014332,2]
[337049972,1725379844903,-500.0,0.00014332,2]
[337049973,1725379844913,-2164.32,0.00014332,2]
[337049974,1725379844922,-2164.32,0.00014332,2]
[337049975,1725379844932,-2164.32,0.00014332,2]
[337049976,1725379844942,-2164.32,0.00014332,2]
[337049977,1725379844951,-538.79,0.00014332,2]
[337049978,1725379844961,-538.79,0.00014332,2]
[337049979,1725379844971,-538.79,0.00014332,2]
[337049980,1725379844980,-538.79,0.00014332,2]
[337049981,1725379844989,-500.0,0.00014332,2]
[337049982,1725379844999,-500.0,0.00014332,2]
[337049983,1725379845008,-500.0,0.00014332,2]
[337049984,1725379845018,-500.0,0.00014332,2]
[337049985,1725379845027,-357.04984228,0.00014332,2]
[337049986,1725379845045,-142.95015772,0.00014332,2]
[337049987,1725379845054,-500.0,0.00014332,2]
[337049988,1725379845063,-500.0,0.00014332,2]
[337049989,1725379845073,-500.0,0.00014332,2]
[337049990,1725379845083,-522.29471462,0.00014332,2]
[337049991,1725379845093,-444.19328377,0.00014332,2]
[337049992,1725379845103,-500.0,0.00014332,2]
[337049993,1725379845112,-500.0,0.00014332,2]
[337049994,1725379845123,-500.0,0.00014332,2]
[337049995,1725379845133,-500.0,0.00014332,2]
[337049996,1725379845142,-500.0,0.00014332,2]
[337049997,1725379845152,-500.0,0.00014332,2]
[337049998,1725379845161,-535.49590867,0.00014332,2]
[337049999,1725379845172,-500.0,0.00014332,2]
[337050000,1725379845181,-500.0,0.00014332,2]
[337050001,1725379845190,-500.0,0.00014332,2]
[337050002,1725379845199,-2161.18,0.00014332,2]
[337050003,1725379845209,-500.0,0.00014332,2]
[337050004,1725379845219,-1514.38817522,0.00014332,2]
[337050005,1725379845232,-646.79182478,0.00014332,2]
[337050006,1725379845242,-2161.18,0.00014332,2]
[337050007,1725379845252,-500.0,0.00014332,2]
[337050008,1725379845261,-299.47230117,0.00014332,2]
[337050009,1725379845272,-500.0,0.00014332,2]
[337050010,1725379845285,-2161.18,0.00014332,2]
[337050011,1725379845295,-500.0,0.00014332,2]
[337050012,1725379845309,-2510.27,0.00014332,2]
[337050013,1725379845319,-2510.27,0.00014332,2]
[337050014,1725379845329,-2510.27,0.00014332,2]
[337050015,1725379845339,-1968.63880928,0.00014332,2]
[337050016,1725379845911,-535.295496,0.00014332,2]
[337050021,1725379846451,-708.905,0.0001433,2]
[337050022,1725379846509,-1554.23207167,0.0001433,2]
[337050023,1725379846520,-264.06840755,0.0001433,2]
[337050024,1725379846532,-353.47,0.0001433,2]
[337050025,1725379846545,-392.41452078,0.0001433,2]
[337050026,1725379846554,-1.96586239,0.00014331,2]
[337050027,1725379846569,-704.85845544,0.00014331,2]
[337050028,1725379846584,-2566.26568217,0.00014331,2]
[337050029,1725379846594,-3273.09,0.00014331,2]
[337050030,1725379846604,-3273.09,0.00014331,2]
[337050031,1725379846614,-2583.09871783,0.00014331,2]
[337050040,1725379890934,15197.6607,0.00012935,2]
[337050041,1725379902449,657.61,0.0001163,2]
[337050042,1725380122157,14213.233668,0.00012987,2]
[337050043,1725380192536,11505.0,0.000103,5]
[337050044,1725380193373,11505.0,0.000101,3]
[337050045,1725380193648,145876.0,0.0001,2]
[337050046,1725380290381,250.0,0.00012639,2]
[337050047,1725380316812,5156.76,0.00012653,2]
[337050048,1725380323325,161.85,0.00012653,2]
[337050049,1725380352320,5826.18785791,0.00012938,2]
[337050050,1725380357335,5826.1878579,0.0001294,2]
[337050051,1725380362316,5826.1878579,0.00012942,2]
[337050052,1725380368544,2532.65,0.00012755,2]
[337050053,1725380377327,151.42,0.00010123,2]
[337050054,1725380401617,658.32,0.00012755,2]
[337050055,1725380412213,1370.55,0.00012653,2]
[337050056,1725380413824,1833.81,0.0001264,2]
[337050057,1725380450438,664.19,0.00012576,2]
[337050058,1725380491763,550.0,0.00011,2]
[337050059,1725380492924,600.0,0.00013,2]
[337050060,1725380511401,150.0,0.00012535,2]
[337050061,1725380532239,23900.0,0.00012595,2]
[337050062,1725380571342,250.0,0.00012556,2]
[337050063,1725380600073,250.0,0.00012533,2]
[337050064,1725380604651,1852.42,0.00012545,2]
[337050065,1725380626999,916.99,0.00010616,2]
[337050066,1725380627485,916.99,0.0001288,2]
[337050067,1725380638762,231.59,0.00012558,2]
[337050068,1725380656198,6408.1,0.00012557,2]
[337050069,1725380665884,200.0,0.00012557,2]
[337050070,1725380666179,176.96,0.00012557,2]
[337050071,1725380737533,150.45,0.00012646,2]
[337050081,1725380954096,887.19,0.00012621,2]
[337050082,1725380993511,-1636.34,0.00013005,2]
[337050083,1725380993540,-157.22,0.00013033,2]
[337050084,1725380993569,-157.22,0.00013038,2]
[337050085,1725380993597,-3097.12195131,0.00013042,2]
[337050086,1725380993635,-690.41601451,0.00013042,2]
[337050087,1725380993664,-157.22,0.00013042,2]
[337050088,1725380993694,-157.22,0.00013047,2]
[337050089,1725380993722,-157.22,0.00013051,2]
[337050090,1725380993751,-3262.2104,0.00013053,2]
[337050091,1725380993782,-157.22,0.00013055,2]
[337050092,1725380994024,-157.22,0.0001306,2]
[337050093,1725380994053,-309.1755368,0.00013061,2]
[337050094,1725380994086,-690.8244632,0.00013061,2]
[337050095,1725380994118,-157.22,0.00013064,2]
[337050096,1725380994145,-157.22,0.00013068,2]
[337050097,1725380994173,-157.22,0.00013073,2]
[337050098,1725380994204,-157.22,0.00013077,2]
[337050099,1725380994233,-157.22,0.00013081,2]
[337050100,1725380994260,-157.22,0.00013086,2]
[337050101,1725380994286,-157.22,0.0001309,2]
[337050102,1725380994313,-157.22,0.00013094,2]
[337050103,1725380994340,-157.22,0.00013099,2]
[337050104,1725380994366,-1305.51750724,0.00013153,2]
[337050112,1725381031535,-190.54,0.00013269,2]
[337050113,1725381031546,-180.98,0.000135,2]
[337050114,1725381031555,-2751.0,0.00013699,2]
[337050115,1725381031565,-172.74,0.00013699,2]
[337050116,1725381031574,-200.0,0.00013699,2]
[337050117,1725381031584,-1204.74,0.00013972,2]
[337050118,1725381031598,-395.26,0.00013972,2]
[337050119,1725381031608,-1800.0,0.00013972,2]
[337050120,1725381031617,-180.0,0.00014,30]
[337050121,1725381031627,-4045.3257,0.00014031,2]
[337050122,1725381031637,-597.84,0.00014031,2]
[337050123,1725381031648,-2500.0,0.00014087,2]
[337050124,1725381031659,-15221.71530692,0.00014088,2]
[337050125,1725381031668,-150.0,0.00014103,2]
[337050126,1725381031683,-499.99,0.00014103,2]
[337050127,1725381031692,-15221.71530684,0.00014104,2]
[337050128,1725381031702,-15221.71530684,0.0001412,2]
[337050129,1725381031711,-4494.07472503,0.00014121,2]
[337050130,1725381031722,-176.96,0.00014126,2]
[337050131,1725381031731,-155.51635946,0.0001413,2]
[337050132,1725381031741,-321.20748467,0.0001413,2]
[337050133,1725381031751,-187.1327,0.00014131,2]
[337050134,1725381031761,-1468.5995,0.00014131,2]
[337050135,1725381031770,-54445.5096,0.00014131,2]
[337050136,1725381031780,-1143.0515,0.00014131,2]
[337050137,1725381031789,-506.6185,0.00014131,2]
[337050138,1725381031799,-422.0148,0.00014131,2]
[337050139,1725381031808,-892.1665,0.00014131,2]
[337050140,1725381031818,-1000.0,0.00014131,2]
[337050142,1725381031828,-15221.71530684,0.00014136,2]
[337050144,1725381031837,-155.5163594,0.00014144,2]
[337050145,1725381031846,-15221.71530684,0.00014152,2]
[337050146,1725381031855,-155.5163594,0.00014159,2]
[337050147,1725381031865,-15221.71530684,0.00014168,2]
[337050148,1725381031874,-155.5163594,0.00014173,2]
[337050149,1725381031883,-134312.87104633,0.0001418,2]
[337050150,1725381031894,-15221.71530684,0.00014184,2]
[337050151,1725381031903,-155.5163594,0.00014188,2]
[337050152,1725381031912,-3457.57,0.00014199,2]
[337050153,1725381031923,-1556.8,0.00014199,2]
[337050154,1725381031933,-689.58,0.00014199,2]
[337050155,1725381031942,-150.0,0.000142,2]
[337050156,1725381031952,-1000.0,0.000142,2]
[337050157,1725381031961,-15221.71530684,0.000142,2]
[337050158,1725381031970,-155.5163594,0.00014202,2]
[337050159,1725381031980,-15221.71530684,0.00014216,2]
[337050160,1725381031990,-155.5163594,0.00014217,2]
[337050161,1725381031999,-500.0,0.00014219,2]
[337050162,1725381032010,-500.0,0.00014219,2]
[337050163,1725381032019,-500.0,0.00014219,2]
[337050164,1725381032029,-13256.4513036,0.0001422,2]
[337050165,1725381032039,-150.92364053,0.00014228,2]
[337050166,1725381032048,-6205.1204,0.00014229,2]
[337050167,1725381032057,-181.23402637,0.0001423,2]
[337050168,1725381032067,-500.0,0.0001423,2]
[337050169,1725381032076,-1954.2,0.0001423,2]
[337050170,1725381032086,-502.58,0.0001423,2]
[337050171,1725381032096,-500.0,0.0001423,2]
[337050172,1725381032106,-500.0,0.0001423,2]
[337050173,1725381032115,-1848.22,0.0001423,2]
[337050174,1725381032125,-929.15,0.0001423,2]
[337050175,1725381032134,-2245.65,0.0001423,2]
[337050176,1725381032144,-909.28,0.0001423,2]
[337050177,1725381032153,-1013.7,0.0001423,2]
[337050178,1725381032162,-500.0,0.0001423,2]
[337050179,1725381032171,-967.94,0.0001423,2]
[337050180,1725381032181,-500.0,0.0001423,2]
[337050181,1725381032190,-908.22,0.0001423,2]
[337050182,1725381032199,-925.63,0.0001423,2]
[337050183,1725381032209,-1713.42,0.0001423,2]
[337050184,1725381032218,-500.0,0.0001423,2]
[337050185,1725381032227,-500.0,0.0001423,2]
[337050186,1725381032236,-1710.94,0.0001423,2]
[337050187,1725381032246,-569.53,0.0001423,2]
[337050188,1725381032255,-2357.99,0.0001423,2]
[337050189,1725381032265,-500.0,0.0001423,2]
[337050190,1725381032274,-500.0,0.0001423,2]
[337050191,1725381032284,-1228.33,0.0001423,2]
[337050192,1725381032295,-510.61,0.0001423,2]
[337050193,1725381032304,-5720.45,0.0001423,2]
[337050194,1725381032313,-13693.09,0.0001423,2]
[337050195,1725381032323,-855.4,0.0001423,2]
[337050196,1725381032332,-500.0,0.0001423,2]
[337050197,1725381032341,-2619.94,0.0001423,2]
[337050198,1725381032351,-507.81727647,0.0001423,2]
[337050199,1725381032360,-6592.35,0.0001423,2]
[337050200,1725381032371,-814.69,0.0001423,2]
[337050201,1725381032381,-3946.31,0.0001423,2]
[337050202,1725381032391,-2423.43,0.0001423,2]
[337050203,1725381032401,-500.0,0.0001423,2]
[337050204,1725381032411,-819.95,0.0001423,2]
[337050205,1725381032420,-2479.86,0.0001423,2]
[337050206,1725381032429,-17147.95,0.0001423,2]
[337050207,1725381032439,-6127.21,0.0001423,2]
[337050208,1725381032448,-3911.24,0.0001423,2]
[337050209,1725381032458,-500.0,0.0001423,2]
[337050210,1725381032467,-500.0,0.0001423,2]
[337050211,1725381032477,-7506.14,0.0001423,2]
[337050212,1725381032487,-14785.1,0.0001423,2]
[337050213,1725381032497,-1364.7,0.0001423,2]
[337050214,1725381032506,-500.0,0.0001423,2]
[337050215,1725381032515,-500.0,0.0001423,2]
[337050216,1725381032528,-11003.86,0.0001423,2]
[337050217,1725381032537,-500.0,0.0001423,2]
[337050218,1725381032546,-3457.57,0.0001423,2]
[337050219,1725381032556,-7482.36,0.0001423,2]
[337050220,1725381032565,-2859.49,0.0001423,2]
[337050221,1725381032575,-593.78,0.0001423,2]
[337050222,1725381032584,-873.25,0.0001423,2]
[337050223,1725381032593,-500.0,0.0001423,2]
[337050224,1725381032602,-500.0,0.0001423,2]
[337050225,1725381032612,-500.0,0.0001423,2]
[337050226,1725381032621,-7237.51,0.0001423,2]
[337050227,1725381032631,-638.94,0.0001423,2]
[337050228,1725381032640,-175.2173144,0.0001423,2]
[337050229,1725381032650,-4195.87,0.0001423,2]
[337050230,1725381032660,-349.17337109,0.0001423,2]
[337050231,1725381032670,-9210.83,0.0001423,2]
[337050233,1725381032680,-500.0,0.0001423,2]
[337050235,1725381032690,-9649.74,0.0001423,2]
[337050237,1725381032700,-500.0,0.0001423,2]
[337050238,1725381032709,-411.35580749,0.0001423,2]
[337050240,1725381032718,-2479.7,0.0001423,2]
[337050242,1725381032729,-3376.51,0.0001423,2]
[337050244,1725381032739,-5210.82,0.0001423,2]
[337050246,1725381032748,-1556.8,0.0001423,2]
[337050248,1725381032758,-500.0,0.0001423,2]
[337050250,1725381032766,-10353.25,0.0001423,2]
[337050252,1725381032776,-500.0,0.0001423,2]
[337050254,1725381032785,-2192.72,0.0001423,2]
[337050256,1725381032795,-500.0,0.0001423,2]
[337050258,1725381032804,-500.0,0.0001423,2]
[337050260,1725381032814,-7918.48,0.0001423,2]
[337050262,1725381032823,-2582.39,0.0001423,2]
[337050264,1725381032833,-9098.6,0.0001423,2]
[337050266,1725381032842,-3386.14,0.0001423,2]
[337050268,1725381032851,-5312.81,0.0001423,2]
[337050270,1725381032860,-2942.7,0.0001423,2]
[337050271,1725381032870,-1762.68,0.0001423,2]
[337050273,1725381032880,-555.04,0.0001423,2]
[337050275,1725381032889,-2395.9,0.0001423,2]
[337050277,1725381032900,-217.12067785,0.0001423,2]
[337050279,1725381032909,-24305.76,0.0001423,2]
[337050281,1725381032918,-3345.72,0.0001423,2]
[337050283,1725381032928,-500.0,0.0001423,2]
[337050285,1725381032937,-2149.1,0.0001423,2]
[337050287,1725381032947,-500.0,0.0001423,2]
[337050289,1725381032956,-6923.17,0.0001423,2]
[337050291,1725381032965,-897.1298441,0.0001423,2]
[337050293,1725381032975,-2079.83,0.0001423,2]
[337050295,1725381032985,-1154.03,0.0001423,2]
[337050297,1725381032993,-1822.82,0.0001423,2]
[337050299,1725381033002,-1271.2,0.0001423,2]
[337050301,1725381033012,-500.0,0.0001423,2]
[337050303,1725381033022,-689.58,0.0001423,2]
[337050305,1725381033031,-181.23402635,0.00014231,2]
[337050307,1725381033040,-897.12984408,0.00014231,2]
[337050309,1725381033052,-998.3312,0.00014231,2]
[337050311,1725381033061,-281.1116,0.00014231,2]
[337050313,1725381033071,-12411.2315,0.00014231,2]
[337050315,1725381033082,-38942.5953,0.00014231,2]
[337050317,1725381033092,-108454.5357,0.00014231,2]
[337050319,1725381033102,-1930.1682,0.00014231,2]
[337050321,1725381033113,-1000.0,0.00014231,2]
[337050323,1725381033123,-3557.97710485,0.00014231,2]
[337050325,1725381033132,-181.23402635,0.00014231,2]
[337050327,1725381033141,-155.5163594,0.00014231,2]
[337050329,1725381033154,-897.12984408,0.00014231,2]
[337050331,1725381033173,-181.23402635,0.00014232,2]
[337050333,1725381033183,-181.23402635,0.00014232,2]
[337050335,1725381033193,-15221.71530684,0.00014232,2]
[337050337,1725381033203,-6224.39950182,0.00014232,2]
[337050339,1725381033213,-500.0,0.00014232,2]
[337050341,1725381033222,-166.231363,0.00014247,2]
[337050343,1725381033232,-160.047264,0.00014273,2]
[337050345,1725381033242,-500.0,0.00014273,2]
[337050347,1725381033252,-500.0,0.00014273,2]
[337050349,1725381033262,-321.20748462,0.00014284,2]
[337050351,1725381033272,-1110.28091693,0.00014299,5]
[337050353,1725381033282,-31929.920888,0.000143,2]
[337050355,1725381033291,-500.0,0.00014327,2]
[337050357,1725381033301,-452.77092159,0.00014327,2]
[337050359,1725381033311,-2619.94,0.00014328,2]
[337050361,1725381033320,-819.95,0.00014328,2]
[337050363,1725381033330,-6127.21,0.00014328,2]
[337050365,1725381033340,-14785.1,0.00014328,2]
[337050367,1725381033350,-3457.57,0.00014328,2]
[337050369,1725381033360,-3457.57,0.00014328,2]
[337050371,1725381033370,-500.0,0.00014328,2]
[337050373,1725381033379,-500.0,0.00014328,2]
[337050375,1725381033390,-500.0,0.00014328,2]
[337050377,1725381033410,-7237.51,0.00014328,2]
[337050379,1725381033420,-9210.83,0.00014328,2]
[337050381,1725381033431,-1556.8,0.00014328,2]
[337050383,1725381033441,-1556.8,0.00014328,2]
[337050385,1725381033451,-2192.72,0.00014328,2]
[337050387,1725381033462,-9098.6,0.00014328,2]
[337050389,1725381033471,-5312.81,0.00014328,2]
[337050391,1725381033481,-24305.76,0.00014328,2]
[337050393,1725381033490,-3345.72,0.00014328,2]
[337050395,1725381033500,-6923.17,0.00014328,2]
[337050397,1725381033510,-1154.03,0.00014328,2]
[337050399,1725381033520,-1271.2,0.00014328,2]
[337050401,1725381033530,-301.84728106,0.00014328,2]
[337050402,1725381033539,-441.74,0.00014329,2]
[337050403,1725381033550,-714.0,0.00014329,2]
[337050404,1725381033560,-4297.0,0.00014329,2]
[337050405,1725381033570,-1130.78,0.00014329,2]
[337050406,1725381033579,-937.83,0.00014329,2]
[337050407,1725381033589,-500.0,0.00014329,2]
[337050409,1725381033599,-500.0,0.00014329,2]
[337050411,1725381033609,-500.0,0.00014329,2]
[337050413,1725381033620,-500.0,0.00014329,2]
[337050414,1725381033630,-500.0,0.00014329,2]
[337050415,1725381033640,-1628.77,0.00014329,2]
[337050416,1725381033653,-500.0,0.00014329,2]
[337050417,1725381033663,-500.0,0.00014329,2]
[337050418,1725381033674,-500.0,0.00014329,2]
[337050419,1725381033689,-500.0,0.00014329,2]
[337050420,1725381033699,-1987.56,0.00014329,2]
[337050421,1725381033709,-500.0,0.00014329,2]
[337050422,1725381033721,-500.0,0.00014329,2]
[337050423,1725381033731,-388.94300127,0.00014329,2]